bitfinex/quotes_ETHUSD_20250222
["timestamp","ask_amount","ask_price","bid_price","bid_amount"]
[1740215167076,0.7785,2704.5,2704.4,3.69767]
[1740215168145,0.7785,2704.5,2704.3,3.6978]
[1740215169146,0.7785,2704.3,2703.6,5.37]
[1740215169377,3.69812,2704.1,2703.6,3.69869]
[1740215169592,0.7785,2704.2,2703.6,3.69877]
[1740215169894,3.69809,2704.1,2703.5,3.6988]
[1740215170094,0.7785,2704.0,2703.3,3.69911]
[1740215170300,0.7785,2704.0,2703.2,5.37]
[1740215170599,4.47673,2704.0,2703.5,3.69883]
[1740215170803,0.61838179,2704.0,2703.6,3.69874]
[1740215171094,4.79300117,2704.0,2703.4,3.69894]
[1740215171593,4.79300117,2704.0,2703.4,3.69893]
[1740215171794,4.79300117,2704.0,2703.4,7.39788]
[1740215172103,1.09478117,2704.0,2703.6,3.69875]
[1740215172402,3.0,2704.3,2703.5,4.12745913]
[1740215172697,5.32,2705.1,2704.5,3.69753]
[1740215172900,5.32,2705.2,2704.7,3.69713]
[1740215173072,3.0,2705.1,2704.7,3.69713]
[1740215173277,6.69673,2705.1,2704.6,3.69735]
[1740215173579,1.201673,2705.0,2704.6,3.69738]
[1740215173781,0.7785,2705.1,2704.7,3.69723]
[1740215173975,0.7785,2705.1,2704.8,3.69712]
[1740215174157,0.7785,2705.1,2704.9,3.69689]
[1740215174387,0.7785,2705.6,2705.2,3.69648]
[1740215174592,0.7785,2705.6,2705.3,3.69632]
[1740215175174,0.7785,2705.6,2705.3,7.39267]
[1740215175403,0.7785,2705.6,2705.3,3.69632]
[1740215176059,0.7785,2705.6,2705.1,3.69671]
[1740215176264,0.7785,2705.6,2705.0,3.52725913]
[1740215176265,4.922048,2705.6,2705.0,3.52725913]
[1740215176467,4.922048,2705.6,2705.1,0.08912607]
[1740215176693,3.69648,2705.3,2705.1,0.08912607]
[1740215176859,3.69633,2705.4,2704.7,9.06718]
[1740215177057,0.73926,2705.3,2704.8,3.78141832]
[1740215177503,4.43579,2705.3,2704.8,0.08437832]
[1740215177693,3.6967,2705.2,2704.7,5.37]
[1740215178003,3.6967,2705.2,2704.8,0.08437832]
[1740215178218,3.6967,2705.2,2704.7,5.37]
[1740215178381,4.140296,2705.2,2704.9,0.08437832]
[1740215178711,0.443596,2705.2,2705.0,0.08437832]
[1740215179016,0.443596,2705.2,2704.7,9.06723]
[1740215179204,0.443596,2705.2,2705.1,0.08437832]
[1740215179408,0.443596,2705.2,2704.7,9.06723]
[1740215179606,0.443596,2705.2,2705.1,0.08437832]
[1740215179903,4.140176,2705.2,2705.1,0.08437832]
[1740215180112,0.443596,2705.2,2704.7,3.69723]
[1740215180320,0.443596,2705.2,2705.1,0.08437832]
[1740215180527,0.443596,2705.2,2704.7,3.69723]
[1740215180685,0.443596,2705.2,2705.1,0.08437832]
[1740215180880,0.443596,2705.2,2704.4,5.37]
[1740215180881,0.443596,2705.2,2704.8,3.69712]
[1740215181205,0.443596,2705.2,2704.9,0.08437832]
[1740215181609,4.140176,2705.2,2704.6,3.69732]
[1740215181810,0.443596,2705.2,2705.0,0.08437832]
[1740215182123,0.443596,2705.2,2705.1,0.08437832]
[1740215182283,4.140176,2705.2,2704.6,3.69732]
[1740215182621,1.6154646,2705.1,2704.7,0.08437832]
[1740215182921,0.8318,2705.1,2704.5,3.69753]
[1740215183126,0.8318,2705.1,2704.8,0.08437832]
[1740215183327,0.8318,2705.1,2704.5,3.69753]
[1740215183626,0.8318,2705.1,2704.9,3.78136832]
[1740215183784,0.7975,2705.4,2705.1,3.69662]
[1740215183985,0.7975,2705.4,2705.0,0.08437832]
[1740215184296,0.7975,2705.4,2705.1,0.08437832]
[1740215184508,1.382,2705.6,2705.3,3.69644]
[1740215184822,0.832,2705.6,2705.2,0.08437832]
[1740215184996,3.69598,2705.7,2705.1,3.69662]
[1740215185198,3.69598,2705.7,2705.3,0.08437832]
[1740215185395,7.39199,2705.7,2705.1,3.69662]
[1740215185619,3.69611,2705.6,2705.4,0.08437832]
[1740215185785,0.818959,2705.6,2704.9,4.2971]
[1740215185982,3.69618,2705.5,2704.9,4.2971]
[1740215186182,7.39246,2705.5,2704.9,3.69692]
[1740215186494,3.69618,2705.5,2705.0,3.69682]
[1740215186702,0.818959,2705.6,2705.1,3.69661]
[1740215186703,4.514999,2705.6,2705.1,3.69661]
[1740215188232,0.818959,2705.6,2705.1,3.69661]
[1740215188731,0.818959,2705.6,2704.7,9.06723]
[1740215188931,0.818959,2705.6,2705.2,3.6965]
[1740215189430,3.7975,2705.8,2705.3,3.69633]
[1740215189595,3.7975,2705.8,2705.4,3.69631]
[1740215190520,0.7975,2707.3,2705.8,0.6002]
[1740215190689,8.4e-06,2706.3,2706.2,8.7112284]
[1740215191019,8.4e-06,2706.3,2706.2,14.44637292]
[1740215191404,8.4e-06,2706.3,2706.2,8.79437292]
[1740215191736,8.4e-06,2706.3,2706.2,19.37871439]
[1740215191942,0.7975,2708.1,2707.4,3.69354]
[1740215192093,0.011,2708.2,2708.1,3.69262]
[1740215192286,0.28004851,2709.4,2708.1,3.69262]
[1740215192287,0.85287057,2709.6,2708.4,3.0]
[1740215192596,36.742001,2710.0,2709.9,3.69017]
[1740215192798,36.742001,2710.0,2709.9,0.738055]
[1740215193130,36.742001,2710.0,2709.9,3.76491027]
[1740215193291,36.742001,2710.0,2709.9,8.18072867]
[1740215193493,36.742001,2710.0,2709.9,10.21673892]
[1740215193889,0.1465184,2711.7,2711.6,3.68785]
[1740215194237,0.1465184,2711.7,2711.6,3.81009575]
[1740215194438,0.1465184,2711.7,2711.6,0.0706191]
[1740215194607,4.80328067,2712.5,2711.9,4.4158184]
[1740215194939,3.68651,2712.6,2712.0,0.0684256]
[1740215195086,3.68717,2712.1,2710.9,4.4158184]
[1740215195325,0.1,2712.3,2711.0,0.0684256]
[1740215195673,3.68853,2711.1,2710.3,4.4158184]
[1740215195839,0.7975,2712.1,2710.2,0.5892]
[1740215195840,3.68874,2711.0,2710.2,0.5892]
[1740215196040,3.0,2711.5,2710.2,0.5892]
[1740215196041,3.68838,2711.3,2710.4,0.06593124]
[1740215196230,3.68857,2711.1,2710.2,0.5892]
[1740215196430,0.55,2711.4,2710.5,0.06593124]
[1740215196629,3.68964,2710.3,2709.6,0.5892]
[1740215196830,3.68964,2710.3,2709.1,4.59468303]
[1740215197076,4.48632,2710.9,2709.7,0.06593124]
[1740215197256,3.68894,2710.8,2709.8,0.05165173]
[1740215197426,0.7975,2710.9,2709.8,0.06113278]
[1740215197427,4.48633,2710.9,2709.8,0.06113278]
[1740215197631,3.68917,2710.7,2709.8,0.06113278]
[1740215198067,3.68812,2711.5,2709.8,0.06113278]
[1740215198068,3.68854,2711.1,2709.8,0.06113278]
[1740215198370,3.68845,2711.2,2710.1,4.4158184]
[1740215198575,3.68813,2711.4,2710.1,4.4158184]
[1740215198875,3.68854,2711.1,2710.2,0.06113278]
[1740215199179,3.68854,2711.1,2710.2,0.65033278]
[1740215199873,3.68787,2711.6,2710.5,8.1051684]
[1740215200044,3.6883,2711.3,2710.5,4.4158184]
[1740215200243,3.68793,2711.6,2710.5,8.1051684]
[1740215200558,3.68747,2711.9,2710.7,3.68908]
[1740215200757,3.68747,2711.9,2710.6,3.80195571]
[1740215200758,3.68747,2711.9,2710.8,0.05162869]
[1740215200957,3.68772,2711.7,2710.7,3.68901]
[1740215201160,4.056217,2711.9,2710.9,0.06113278]
[1740215201476,4.056207,2711.9,2710.6,3.68919]
[1740215201637,3.68809,2711.5,2710.4,3.68947]
[1740215201969,3.68827,2711.3,2710.4,3.68947]
[1740215202177,3.68815,2711.4,2710.5,0.06113278]
[1740215202366,0.55,2711.7,2710.3,0.05163808]
[1740215202679,3.68866,2711.1,2710.6,0.06113278]
[1740215202890,3.68879,2711.0,2710.2,0.5892]
[1740215203054,3.68881,2710.9,2710.7,0.06113278]
[1740215203259,0.39556207,2711.6,2710.4,3.68948]
[1740215203457,0.39556207,2711.6,2710.4,3.74111799]
[1740215203657,3.68843,2711.2,2710.5,0.06113278]
[1740215203858,3.68813,2711.4,2710.5,0.06113278]
[1740215204245,3.68843,2711.2,2710.5,0.06113278]
[1740215204539,0.4056207,2711.8,2710.5,0.06113278]
[1740215204540,3.68855,2711.1,2710.5,0.06113278]
[1740215204845,3.68828,2711.3,2710.5,0.06113278]
[1740215205069,3.68834,2711.3,2710.5,0.06113278]
[1740215205685,3.68855,2711.1,2710.5,0.06113278]
[1740215206479,3.68813,2711.4,2710.5,0.06113278]
[1740215206480,3.6882,2711.4,2710.5,0.06113278]
[1740215206686,0.36882,2711.3,2710.5,0.06113278]
[1740215206986,3.6891,2710.7,2710.6,0.05958339]
[1740215207286,0.7683,2711.0,2709.9,0.314]
[1740215207490,3.68961,2710.4,2709.5,0.5892]
[1740215207642,5.1841184,2711.0,2710.0,0.05958339]
[1740215207643,3.6899,2710.1,2710.0,0.05958339]
[1740215207991,3.6899,2710.1,2709.5,0.5892]
[1740215208197,3.69029,2709.9,2709.5,0.5892]
[1740215208555,3.68942,2710.5,2708.9,0.5892]
[1740215208888,4.4158184,2710.4,2708.9,0.5892]
[1740215209110,3.69101,2709.3,2708.9,0.5892]
[1740215209250,3.69102,2709.3,2708.9,0.5892]
[1740215209447,3.69026,2709.9,2708.3,4.28143]
[1740215209787,3.69156,2708.9,2708.3,0.5892]
[1740215209995,3.69141,2709.0,2708.3,4.28145]
[1740215210146,3.69077,2709.5,2707.9,4.00683]
[1740215210147,3.69193,2708.7,2707.9,4.00683]
[1740215210375,3.69208,2708.5,2707.9,4.00683]
[1740215210693,3.69225,2708.4,2707.9,0.314]
[1740215210860,4.00492,2709.4,2707.6,0.5892]
[1740215210861,3.69258,2708.2,2707.6,0.5892]
[1740215211046,0.7683,2708.9,2707.6,0.5892]
[1740215211249,3.69209,2708.5,2707.8,3.69294]
[1740215211489,3.69238,2708.3,2707.6,0.64089153]
[1740215211648,3.69208,2708.5,2707.7,3.69313]
[1740215211840,4.45984,2708.9,2708.0,3.69275]
[1740215212042,3.69142,2709.0,2708.2,3.69236]
[1740215212240,3.69158,2708.9,2708.2,3.69236]
[1740215212991,3.69168,2708.8,2708.0,3.69275]
[1740215213152,3.69182,2708.7,2708.0,3.69275]
[1740215214409,3.69182,2708.7,2707.8,3.69297]
[1740215214410,3.7683,2709.4,2707.8,3.69297]
[1740215214566,3.69224,2708.4,2707.7,0.314]
[1740215214766,3.69224,2708.4,2707.8,3.693]
[1740215215906,3.69199,2708.6,2708.0,3.69275]
[1740215216414,3.69199,2708.6,2707.8,3.693]
[1740215216716,3.69199,2708.6,2707.8,3.69294]
[1740215217012,3.69195,2708.6,2708.0,3.69271]
[1740215217169,3.69195,2708.6,2707.8,3.69294]
[1740215217612,7.38399,2708.6,2707.8,3.69291]
[1740215217785,3.69195,2708.6,2707.8,3.69291]
[1740215217994,3.69195,2708.6,2707.9,3.69285]
[1740215218186,3.69148,2709.0,2708.0,0.05168674]
[1740215218392,3.69163,2708.9,2707.9,3.69279]
[1740215218591,0.420013,2709.2,2707.9,3.69279]
[1740215218879,3.6919,2708.7,2707.9,3.69279]
[1740215219421,3.6919,2708.7,2708.0,0.11559776]
[1740215219780,3.69197,2708.6,2708.0,0.11559776]
[1740215220193,3.6919,2708.7,2708.0,0.11559776]
[1740215220424,7.3838,2708.7,2708.0,0.11559776]
[1740215220610,3.69206,2708.6,2708.0,0.11559776]
[1740215220792,3.69243,2708.3,2708.0,0.11559776]
[1740215220996,0.4543013,2709.1,2708.0,0.11559776]
[1740215220997,3.69222,2708.4,2708.1,0.0603437]
[1740215221192,3.69212,2708.5,2708.1,0.36089788]
[1740215221381,3.69248,2708.2,2708.1,0.36089788]
[1740215221587,3.69235,2708.3,2708.1,0.30055418]
[1740215222126,3.69235,2708.3,2708.2,0.06081284]
[1740215222824,3.69248,2708.2,2707.6,0.5892]
[1740215223015,3.69289,2708.0,2707.6,0.5892]
[1740215223319,3.69289,2708.0,2707.4,0.17886463]
[1740215223320,3.69311,2707.8,2707.4,0.17886463]
[1740215223518,3.69289,2707.9,2707.4,0.17886463]
[1740215223827,3.6931,2707.8,2707.4,0.17886463]
[1740215224184,3.6928,2708.0,2707.4,0.17886463]
[1740215224499,3.6928,2708.0,2707.3,3.69364]
[1740215224696,3.69299,2707.9,2707.3,3.69364]
[1740215225917,3.69298,2707.9,2707.3,3.69364]
[1740215226214,3.69298,2707.9,2707.2,0.18501138]
[1740215226215,7.38597,2707.9,2707.4,0.11562977]
[1740215226533,3.69298,2707.9,2707.4,0.11562977]
[1740215227113,3.69303,2707.8,2707.4,0.11562977]
[1740215227506,3.69298,2707.9,2707.2,3.69376]
[1740215228238,3.69298,2707.9,2707.1,7.38778]
[1740215228542,3.69298,2707.9,2707.2,3.69384]
[1740215229200,3.69298,2707.9,2707.3,0.11563398]
[1740215229366,0.8277,2708.5,2707.3,0.11563398]
[1740215229514,3.69315,2707.8,2707.3,0.11563398]
[1740215229848,3.69311,2707.8,2707.4,0.0616538]
[1740215230055,3.69301,2707.9,2707.4,0.0616538]
[1740215230253,3.69278,2708.0,2707.4,0.0616538]
[1740215231106,3.6929,2707.9,2707.4,0.0616538]
[1740215231354,3.69235,2708.3,2707.4,0.0616538]
[1740215231510,3.693,2707.9,2707.2,3.69382]
[1740215231849,3.69271,2708.1,2707.4,0.5892]
[1740215232050,0.41357,2708.4,2707.4,0.5892]
[1740215232051,0.41357,2708.4,2707.6,3.69323]
[1740215232235,3.69235,2708.3,2707.7,0.05169146]
[1740215232434,3.69235,2708.3,2707.7,0.06162844]
[1740215233442,3.69251,2708.2,2707.7,0.06162844]
[1740215233659,3.69235,2708.3,2707.7,0.06162844]
[1740215233856,7.38483,2708.3,2707.7,0.06162844]
[1740215234057,3.69235,2708.3,2707.7,0.06162844]
[1740215234457,7.3848,2708.3,2707.7,0.06162844]
[1740215234692,3.69223,2708.4,2707.8,0.11561696]
[1740215234977,3.69243,2708.3,2707.8,0.11561696]
[1740215235183,3.69223,2708.4,2707.8,0.11561696]
[1740215235384,3.69244,2708.3,2707.9,0.06162844]
[1740215235680,3.8109,2708.9,2707.9,0.06162844]
[1740215235883,4.07276,2708.8,2708.0,3.69276]
[1740215236039,3.69187,2708.7,2708.0,3.69276]
[1740215236242,7.38344,2708.8,2708.1,3.75385542]
[1740215236439,3.69181,2708.7,2708.1,3.75385542]
[1740215236867,3.69167,2708.8,2708.2,3.69247]
[1740215237078,4.40710704,2710.3,2708.3,5.04798894]
[1740215237259,3.69068,2709.6,2709.0,3.69132]
[1740215237583,3.69067,2709.6,2709.1,0.06095655]
[1740215237735,7.38082,2709.8,2709.1,0.06095655]
[1740215237941,4.428462,2709.8,2709.2,3.69112]
[1740215238142,0.8109,2710.5,2709.1,0.06095655]
[1740215238143,3.68982,2710.2,2709.1,0.70182459]
[1740215238380,3.69012,2710.0,2709.3,3.6909]
[1740215238554,3.68991,2710.1,2709.2,0.0598922]
[1740215238748,3.68982,2710.2,2709.5,3.69069]
[1740215238940,3.68982,2710.2,2709.2,0.0598922]
[1740215238941,3.68951,2710.4,2709.8,3.69021]
[1740215239579,3.68951,2710.4,2709.9,0.05753535]
[1740215239887,3.68963,2710.3,2709.9,0.05753535]
[1740215240243,1.260936,2710.5,2709.6,3.69055]
[1740215240464,3.68918,2710.7,2710.0,3.74746535]
[1740215240664,3.6893,2710.6,2710.0,3.68993]
[1740215240889,3.68918,2710.7,2710.1,3.74734535]
[1740215241160,3.78735,2712.0,2710.4,3.68948]
[1740215241161,3.68857,2711.1,2710.4,3.68948]
[1740215241390,0.444997,2711.1,2710.2,0.05675046]
[1740215241705,3.68887,2710.9,2710.3,3.68959]
[1740215241904,3.6886,2711.1,2710.4,3.68948]
[1740215242203,3.68871,2711.0,2710.4,3.68948]
[1740215242499,3.6886,2711.1,2710.5,0.05675046]
[1740215243354,3.6886,2711.1,2710.5,3.74607046]
[1740215243553,3.68832,2711.3,2710.6,3.68919]
[1740215243801,3.68836,2711.3,2710.7,0.05435795]
[1740215244162,3.68857,2711.1,2710.7,0.05435795]
[1740215244936,3.68857,2711.1,2710.4,3.68938]
[1740215245144,3.68857,2711.1,2710.8,0.05241866]
[1740215245450,3.68857,2711.1,2710.9,0.05241866]
[1740215245662,3.68857,2711.1,2710.5,3.68934]
[1740215245868,3.68857,2711.1,2711.0,0.05241866]
[1740215246038,3.68857,2711.1,2710.2,3.68971]
[1740215246039,3.6889,2710.9,2710.2,3.68967]
[1740215246431,3.6889,2710.9,2710.3,3.68953]
[1740215246634,3.68816,2711.4,2710.2,3.68964]
[1740215246635,3.68878,2711.0,2710.2,3.68964]
[1740215246839,3.68878,2711.0,2710.4,3.68942]
[1740215247766,3.68909,2710.7,2710.0,3.68992]
[1740215248066,3.6884,2711.2,2710.2,3.68964]
[1740215248067,3.68884,2710.9,2710.2,3.68964]
[1740215248228,3.68903,2710.8,2710.2,3.68964]
[1740215248629,3.68884,2710.9,2710.2,3.68964]
[1740215248853,3.6891,2710.7,2710.1,3.68981]
[1740215249053,3.68884,2710.9,2710.3,3.68954]
[1740215249275,3.68884,2710.9,2709.9,0.5892]
[1740215249455,3.68908,2710.7,2710.2,3.68974]
[1740215249675,3.68908,2710.7,2709.9,0.5892]
[1740215249676,3.68986,2710.2,2709.9,0.5892]
[1740215249966,3.68981,2710.2,2709.5,0.5892]
[1740215250126,1.163316,2711.3,2709.8,0.5892]
[1740215250326,0.7945,2711.3,2710.0,3.0]
[1740215250568,3.68896,2710.8,2710.1,3.68981]
[1740215250771,3.68909,2710.7,2709.9,3.69013]
[1740215251070,3.68935,2710.5,2709.4,0.5892]
[1740215251371,4.23922,2710.6,2709.3,3.69095]
[1740215251372,3.69029,2709.9,2709.3,3.69095]
[1740215251572,0.7945,2710.4,2709.7,3.69033]
[1740215251830,4.4841,2710.4,2709.7,3.69033]
[1740215251979,3.68965,2710.3,2709.7,7.3807]
[1740215252179,3.68968,2710.3,2709.7,3.69034]
[1740215252598,4.48407,2710.4,2709.8,3.69028]
[1740215252906,3.68986,2710.2,2709.6,3.69056]
[1740215253113,1.242907,2710.4,2708.9,4.40710704]
[1740215253244,3.69026,2709.9,2709.3,3.69091]
[1740215253578,3.69032,2709.8,2709.1,3.69115]
[1740215253742,3.69032,2709.8,2709.2,3.6911]
[1740215253939,3.69032,2709.8,2708.9,7.38285]
[1740215253940,3.6906,2709.6,2708.9,7.38285]
[1740215254186,0.7945,2710.4,2708.8,0.5892]
[1740215254340,3.6897,2710.3,2709.6,3.69049]
[1740215255143,3.68985,2710.2,2709.6,3.69049]
[1740215255976,3.68993,2710.1,2709.6,3.69049]
[1740215256193,3.69012,2710.0,2709.4,3.69077]
[1740215256392,3.69021,2709.9,2709.4,3.69077]
[1740215256792,3.6903,2709.9,2708.8,4.28084]
[1740215257005,3.6903,2709.9,2709.4,3.6908]
[1740215257305,3.68997,2710.1,2708.8,4.58384]
[1740215257306,3.68997,2710.1,2709.5,3.69067]
[1740215257472,3.68969,2710.3,2709.5,3.6907]
[1740215257803,3.68991,2710.1,2709.5,3.69063]
[1740215257963,3.68991,2710.1,2709.5,3.69062]
[1740215258165,0.50593507,2710.2,2708.9,3.69153]
[1740215258409,3.68977,2710.2,2709.7,3.69035]
[1740215258564,3.68969,2710.3,2709.7,3.69035]
[1740215258761,0.7945,2710.4,2709.8,3.69023]
[1740215259088,3.68963,2710.3,2709.7,3.69035]
[1740215259288,0.448413,2710.2,2709.6,3.69057]
[1740215259481,4.48408,2710.4,2709.1,3.69121]
[1740215259482,0.7945,2710.4,2709.9,7.3802]
[1740215259681,4.484,2710.4,2709.9,3.6901]
[1740215259881,0.7945,2710.4,2709.7,3.69036]
[1740215260175,3.68976,2710.2,2709.7,3.69036]
[1740215260382,4.48404,2710.4,2709.7,3.69033]
[1740215260579,0.7945,2710.4,2709.4,0.05165681]
[1740215260779,0.7678,2710.8,2710.3,3.6896]
[1740215261191,0.7678,2710.8,2710.4,3.6894]
[1740215261399,0.7678,2710.8,2710.5,3.68924]
[1740215261701,4.40710704,2711.7,2710.3,0.5892]
[1740215261702,0.7678,2711.2,2710.3,0.5892]
[1740215261913,0.7678,2711.2,2710.7,3.689]
[1740215262262,0.7678,2711.2,2710.7,3.68905]
[1740215262510,0.7678,2711.2,2710.8,3.68882]
[1740215262874,3.68814,2711.4,2710.8,3.68882]
[1740215263074,0.62594878,2711.3,2710.8,3.68882]
[1740215263277,0.62594878,2711.3,2710.7,3.68899]
[1740215263807,0.7678,2711.5,2710.3,4.27879]
[1740215264009,0.7601,2711.9,2711.1,0.5892]
[1740215264336,0.7601,2711.9,2711.6,3.68785]
[1740215264698,5.32,2712.3,2711.6,3.68785]
[1740215264869,9.909624,2712.3,2711.6,3.68785]
[1740215265068,9.909624,2712.3,2711.1,5.9592]
[1740215265069,6.222694,2712.3,2711.3,3.68825]
[1740215265290,7.37511,2711.9,2711.2,3.68837]
[1740215265493,3.68724,2712.1,2711.4,3.73763801]
[1740215265694,3.68724,2712.1,2711.4,3.68811]
[1740215265895,0.02,2712.4,2712.3,3.6869]
[1740215266096,0.06024695,2712.7,2712.6,3.6865]
[1740215266298,6.95e-06,2712.7,2712.6,3.73810041]
[1740215266484,6.95e-06,2712.7,2712.6,9.15647784]
[1740215266686,6.95e-06,2712.7,2712.6,9.69407743]
[1740215268176,6.95e-06,2712.7,2712.6,5.41837743]
[1740215269026,6.95e-06,2712.7,2712.6,9.10487743]
[1740215269682,3.68636695,2712.7,2712.6,0.04837743]
[1740215269876,0.44465365,2712.7,2711.8,9.05754]
[1740215270218,3.68643695,2712.7,2711.6,5.9592]
[1740215270514,3.68767,2711.8,2711.7,0.0386699]
[1740215270743,3.6878,2711.7,2710.8,3.68883]
[1740215271042,3.68808,2711.5,2710.9,0.0357973]
[1740215271242,0.7601,2711.2,2710.2,5.37]
[1740215271448,0.7601,2711.2,2710.7,3.68904]
[1740215271614,0.7601,2711.2,2710.5,7.37868]
[1740215271800,0.7601,2711.2,2710.6,3.68919]
[1740215272136,0.7601,2711.6,2710.7,0.0357973]
[1740215272337,0.7601,2711.6,2710.9,3.6887]
[1740215272538,0.7601,2711.6,2710.7,0.0357973]
[1740215272539,3.688,2711.5,2710.7,3.7247673]
[1740215272701,3.688,2711.5,2711.0,0.03789555]
[1740215272894,3.68821,2711.4,2710.7,3.68897]
[1740215273096,0.7601,2711.6,2711.1,0.03789555]
[1740215273297,0.7601,2712.0,2711.4,3.68801]
[1740215273743,0.7601,2712.0,2711.6,3.68774]
[1740215274043,0.7601,2712.0,2711.5,3.68792]
[1740215274389,0.7601,2712.0,2711.7,0.03789555]
[1740215274513,0.7601,2712.0,2711.2,5.37]
[1740215274699,3.68773,2711.7,2711.2,5.37]
[1740215274907,3.68787,2711.6,2711.3,0.03789555]
[1740215275243,3.68762,2711.8,2711.4,0.03571102]
[1740215275442,3.68775,2711.7,2711.4,0.03571102]
[1740215275613,3.68786,2711.6,2711.2,5.37]
[1740215275945,3.68815,2711.4,2711.2,5.37]
[1740215276143,4.425408,2711.6,2710.8,0.5892]
[1740215276449,4.425408,2711.6,2711.0,3.68865]
[1740215276807,3.68786,2711.6,2711.0,3.68865]
[1740215277016,1.204819,2712.0,2711.0,3.68865]
[1740215277307,3.68747,2711.9,2711.2,3.68828]
[1740215278155,3.68746,2711.9,2711.3,3.68825]
[1740215278356,3.68758,2711.8,2711.3,3.68825]
[1740215278533,3.68749,2711.9,2711.3,3.68825]
[1740215279067,0.309,2712.6,2710.7,9.05903]
[1740215279068,6.95e-06,2712.7,2711.4,0.8972]
[1740215279220,0.005,2713.4,2712.6,4.27566]
[1740215279416,7.91853,2713.4,2712.6,4.27566]
[1740215279619,4.233,2713.4,2712.6,4.27566]
[1740215279859,3.6857,2713.2,2712.6,0.5892]
[1740215280064,4.233,2713.4,2712.6,4.27561]
[1740215280265,0.4233,2713.3,2712.4,3.68674]
[1740215280440,3.68606,2713.0,2712.3,4.27606]
[1740215280634,3.68623,2712.8,2712.2,3.68691]
[1740215280836,3.68623,2712.8,2712.2,3.68702]
[1740215281158,4.43839,2713.0,2712.0,0.312]
[1740215281365,3.68641,2712.7,2712.0,3.68718]
[1740215281518,3.68635,2712.8,2712.0,3.68723]
[1740215281723,0.7524,2713.0,2712.3,3.68682]
[1740215281960,0.7524,2713.3,2712.7,3.68627]
[1740215282163,4.43795,2713.3,2712.7,7.37252]
[1740215282331,3.68617,2712.9,2712.2,3.6869]
[1740215282648,3.68624,2712.8,2712.2,3.6869]
[1740215282836,3.68612,2712.9,2712.4,3.68676]
[1740215283048,3.68665,2712.5,2711.7,3.68765]
[1740215283255,6.314295,2713.2,2712.4,3.68665]
[1740215283256,0.8046,2712.8,2712.4,3.68665]
[1740215283463,3.6859,2713.1,2712.4,7.37333]
[1740215283644,0.005,2713.4,2712.4,5.9592]
[1740215283833,0.005,2713.4,2713.1,3.68581]
[1740215284033,0.005,2713.4,2712.8,3.68611]
[1740215284267,3.69043,2713.4,2712.6,3.6865]
[1740215284570,3.6857,2713.2,2712.6,3.6865]
[1740215284772,1.126243,2713.3,2712.5,5.37]
[1740215284944,0.7572,2713.3,2712.9,3.68599]
[1740215285363,0.005,2713.4,2712.9,3.68599]
[1740215285561,0.005,2713.4,2712.5,5.37]
[1740215285759,0.005,2713.4,2712.7,3.6863]
[1740215285959,7.37599,2713.4,2712.7,3.6863]
[1740215286165,3.69047,2713.4,2712.7,3.68627]
[1740215286365,3.69047,2713.4,2712.8,3.68618]
[1740215286877,3.6905,2713.4,2712.7,3.68625]
[1740215287062,0.005,2713.4,2712.5,5.37]
[1740215287375,0.005,2713.4,2712.9,3.68597]
[1740215287547,0.005,2713.4,2712.7,3.6863]
[1740215287873,0.005,2713.4,2712.6,0.05159584]
[1740215288075,0.005,2713.4,2713.0,3.6859]
[1740215289080,0.005,2713.4,2713.1,3.68578]
[1740215289476,0.005,2713.4,2712.7,3.68629]
[1740215289676,0.005,2713.4,2712.8,3.68614]
[1740215290243,3.6905,2713.4,2712.7,7.37255]
[1740215290440,0.005,2713.4,2712.7,3.68626]
[1740215290782,0.005,2713.4,2712.6,5.37]
[1740215290951,3.68604,2713.0,2712.6,5.37]
[1740215291155,3.68577,2713.2,2712.6,5.37]
[1740215291483,3.68592,2713.1,2712.6,5.37]
[1740215291775,3.68577,2713.2,2712.6,5.37]
[1740215292185,3.68577,2713.2,2712.6,9.05641]
[1740215292689,3.68595,2713.0,2712.6,5.37]
[1740215293046,3.68591,2713.1,2712.6,5.37]
[1740215293257,3.68576,2713.2,2712.6,9.05642]
[1740215293482,3.68576,2713.2,2712.6,5.37]
[1740215293752,3.68605,2713.0,2712.6,5.37]
[1740215294679,3.68583,2713.1,2712.6,5.37]
[1740215294885,3.68583,2713.1,2712.6,9.05642]
[1740215295997,3.68583,2713.1,2712.6,3.68642]
[1740215296153,3.68568,2713.2,2712.7,3.68628]
[1740215296357,3.69042,2713.4,2712.9,3.68602]
[1740215296571,3.69042,2713.4,2712.7,3.68624]
[1740215296770,0.005,2713.4,2713.0,3.68591]
[1740215296972,0.005,2713.4,2712.8,3.68618]
[1740215297187,3.68568,2713.3,2712.8,3.68612]
[1740215297395,3.68597,2713.0,2712.4,4.27587]
[1740215297897,3.68597,2713.0,2712.5,3.68661]
[1740215298696,0.44842487,2713.3,2712.5,3.68661]
[1740215298697,0.44842487,2713.3,2712.5,7.37326]
[1740215298864,0.005,2713.4,2712.9,3.68599]
[1740215299059,3.69044,2713.4,2712.9,3.68599]
[1740215299279,3.68555,2713.3,2712.4,0.5892]
[1740215299477,3.68602,2713.0,2712.5,3.68652]
[1740215300205,3.68582,2713.1,2712.5,3.68652]
[1740215300898,3.68582,2713.1,2712.6,3.68647]
[1740215301088,4.50932,2713.0,2712.1,0.5892]
[1740215301296,4.50932,2713.0,2711.7,7.96449]
[1740215301297,3.68697,2712.3,2711.7,7.96449]
[1740215301606,3.68684,2712.4,2711.8,3.68747]
[1740215301912,3.68624,2712.8,2712.2,3.68691]
[1740215302059,3.68622,2712.8,2712.0,3.68724]
[1740215302262,3.68622,2712.8,2711.7,0.5892]